[Event "Titled Tuesday Blitz July 25 Late 2023"]
[White "Alahakoon, Isuru"]
[Black "Chemin, Justo Reinaldo"]
[WhiteFideId "9900993"]
[BlackFideId "2101580"]
[WhiteElo "2341"]
[BlackElo "2251"]
[Result "0-1"]
[Round "7"]
[TimeControl "180+2"]
[Date "2023.07.25"]
[WhiteClock "0:00:00"]
[BlackClock "0:00:18"]
[Board "137"]

1. Nf3 {[%clk 0:03:00]}  d5 {[%clk 0:02:59]} 2. e3 {[%clk 0:03:00]}  c6 {[%clk 0:02:59]} 3. d4 {[%clk 0:02:59]}  Bf5 {[%clk 0:02:59]} 4. c4 {[%clk 0:02:58]}  e6 {[%clk 0:02:58]} 5. Nc3 {[%clk 0:02:51]}  Nf6 {[%clk 0:02:57]} 6. cxd5 {[%clk 0:02:49]}  exd5 {[%clk 0:02:56]} 7. Nh4 {[%clk 0:02:49]}  Be6 {[%clk 0:02:46]} 8. Bd3 {[%clk 0:02:41]}  Be7 {[%clk 0:02:43]} 9. Nf5 {[%clk 0:02:40]}  Bxf5 {[%clk 0:02:36]} 10. Bxf5 {[%clk 0:02:40]}  O-O {[%clk 0:02:35]} 11. O-O {[%clk 0:02:37]}  Na6 {[%clk 0:02:34]} 12. Bc2 {[%clk 0:02:33]}  Nc7 {[%clk 0:02:34]} 13. Qd3 {[%clk 0:02:31]}  g6 {[%clk 0:02:32]} 14. f3 {[%clk 0:02:28]}  Ne6 {[%clk 0:02:30]} 15. Bd2 {[%clk 0:02:24]}  c5 {[%clk 0:02:22]} 16. dxc5 {[%clk 0:02:20]}  Bxc5 {[%clk 0:02:20]} 17. Kh1 {[%clk 0:02:10]}  d4 {[%clk 0:01:57]} 18. exd4 {[%clk 0:01:55]}  Qxd4 {[%clk 0:01:50]} 19. Bh6 {[%clk 0:01:12]}  Qxd3 {[%clk 0:01:37]} 20. Bxd3 {[%clk 0:01:13]}  Rfd8 {[%clk 0:01:37]} 21. Bc4 {[%clk 0:01:13]}  Bd4 {[%clk 0:01:27]} 22. Rae1 {[%clk 0:01:05]}  Bxc3 {[%clk 0:01:15]} 23. bxc3 {[%clk 0:01:06]}  Rd6 {[%clk 0:01:03]} 24. Rb1 {[%clk 0:00:58]}  b6 {[%clk 0:01:03]} 25. Rfe1 {[%clk 0:00:31]}  Rc8 {[%clk 0:01:02]} 26. Bxe6 {[%clk 0:00:26]}  Rxe6 {[%clk 0:00:57]} 27. Rxe6 {[%clk 0:00:25]}  fxe6 {[%clk 0:00:57]} 28. Bd2 {[%clk 0:00:19]}  Nd5 {[%clk 0:00:54]} 29. h3 {[%clk 0:00:16]}  Rc4 {[%clk 0:00:54]} 30. Rb3 {[%clk 0:00:13]}  Kf7 {[%clk 0:00:51]} 31. Kg1 {[%clk 0:00:12]}  a6 {[%clk 0:00:47]} 32. Kf2 {[%clk 0:00:12]}  b5 {[%clk 0:00:47]} 33. Ke2 {[%clk 0:00:12]}  e5 {[%clk 0:00:46]} 34. Kd3 {[%clk 0:00:11]}  Ke6 {[%clk 0:00:45]} 35. Ra3 {[%clk 0:00:10]}  Rc6 {[%clk 0:00:41]} 36. g4 {[%clk 0:00:05]}  h5 {[%clk 0:00:29]} 37. h4 {[%clk 0:00:02]}  hxg4 {[%clk 0:00:25]} 38. fxg4 {[%clk 0:00:03]}  Ne7 {[%clk 0:00:23]} 39. h5 {[%clk 0:00:03]}  gxh5 {[%clk 0:00:22]} 40. gxh5 {[%clk 0:00:04]}  Nf5 {[%clk 0:00:22]} 41. h6 {[%clk 0:00:00]}  Kd5 {[%clk 0:00:18]} 0-1


[Site "https://www.chess.com"]

[Event "Titled Tuesday Blitz July 25 Late 2023"]
[White "Clawitter, Craig"]
[Black "Novikova, Margarita"]
[WhiteFideId "2023105"]
[BlackFideId "14109689"]
[WhiteElo "2276"]
[BlackElo "2165"]
[Result "0-1"]
[Round "7"]
[TimeControl "180+2"]
[Date "2023.07.25"]
[WhiteClock "0:00:00"]
[BlackClock "0:01:40"]
[Board "139"]

1. e4 {[%clk 0:00:56]}  d5 {[%clk 0:02:58]} 2. exd5 {[%clk 0:00:56]}  Qxd5 {[%clk 0:02:58]} 3. Nc3 {[%clk 0:00:56]}  Qd6 {[%clk 0:02:57]} 4. d4 {[%clk 0:00:57]}  Nf6 {[%clk 0:02:57]} 5. Nf3 {[%clk 0:00:57]}  Bg4 {[%clk 0:02:57]} 6. h3 {[%clk 0:00:57]}  Bh5 {[%clk 0:02:56]} 7. g4 {[%clk 0:00:57]}  Bg6 {[%clk 0:02:56]} 8. Ne5 {[%clk 0:00:51]}  Nc6 {[%clk 0:02:56]} 9. Nxc6 {[%clk 0:00:38]}  bxc6 {[%clk 0:02:52]} 10. Bg2 {[%clk 0:00:31]}  e6 {[%clk 0:02:50]} 11. Qf3 {[%clk 0:00:30]}  Nd5 {[%clk 0:02:49]} 12. O-O {[%clk 0:00:20]}  Bxc2 {[%clk 0:02:47]} 13. Nxd5 {[%clk 0:00:18]}  cxd5 {[%clk 0:02:44]} 14. Bf4 {[%clk 0:00:18]}  Qb6 {[%clk 0:02:39]} 15. Rac1 {[%clk 0:00:17]}  Be4 {[%clk 0:02:38]} 16. Qc3 {[%clk 0:00:15]}  Bxg2 {[%clk 0:02:35]} 17. Kxg2 {[%clk 0:00:16]}  Bd6 {[%clk 0:02:34]} 18. Bxd6 {[%clk 0:00:13]}  cxd6 {[%clk 0:02:34]} 19. Qc8+ {[%clk 0:00:08]}  Ke7 {[%clk 0:02:24]} 20. Rc7+ {[%clk 0:00:07]}  Kf6 {[%clk 0:02:22]} 21. Qd7 {[%clk 0:00:06]}  Rhf8 {[%clk 0:02:15]} 22. Qe7+ {[%clk 0:00:06]}  Kg6 {[%clk 0:02:14]} 23. Qh4 {[%clk 0:00:06]}  Qxc7 {[%clk 0:01:52]} 24. f4 {[%clk 0:00:06]}  h6 {[%clk 0:01:46]} 25. f5+ {[%clk 0:00:04]}  Kh7 {[%clk 0:01:44]} 26. g5 {[%clk 0:00:04]}  Qc2+ {[%clk 0:01:40]} 27. Rf2 {[%clk 0:00:05]}  Qe4+ {[%clk 0:01:40]} 28. Kh2 {[%clk 0:00:00]}  Qxh4 {[%clk 0:01:40]} 0-1


[Site "https://www.chess.com"]

[Event "Titled Tuesday Blitz July 25 Late 2023"]
[White "Schut, Han"]
[Black "Burke, Paul"]
[WhiteFideId "1005561"]
[BlackFideId "2605767"]
[WhiteElo "2273"]
[BlackElo "1933"]
[Result "1-0"]
[Round "7"]
[TimeControl "180+2"]
[Date "2023.07.25"]
[WhiteClock "0:00:02"]
[BlackClock "0:00:12"]
[Board "140"]

1. e4 {[%clk 0:02:54]}  e5 {[%clk 0:02:37]} 2. Nf3 {[%clk 0:02:54]}  Nc6 {[%clk 0:02:37]} 3. Bc4 {[%clk 0:02:54]}  Be7 {[%clk 0:02:37]} 4. d4 {[%clk 0:02:45]}  exd4 {[%clk 0:02:36]} 5. c3 {[%clk 0:02:45]}  d6 {[%clk 0:02:35]} 6. cxd4 {[%clk 0:02:44]}  Nf6 {[%clk 0:02:34]} 7. Nc3 {[%clk 0:02:43]}  O-O {[%clk 0:02:34]} 8. O-O {[%clk 0:02:26]}  Bg4 {[%clk 0:02:33]} 9. Be3 {[%clk 0:02:19]}  Nxe4 {[%clk 0:02:25]} 10. Nxe4 {[%clk 0:02:14]}  d5 {[%clk 0:02:25]} 11. Bd3 {[%clk 0:02:11]}  dxe4 {[%clk 0:02:25]} 12. Bxe4 {[%clk 0:02:11]}  f5 {[%clk 0:02:25]} 13. Bxc6 {[%clk 0:02:03]}  bxc6 {[%clk 0:02:25]} 14. Qb3+ {[%clk 0:02:03]}  Kh8 {[%clk 0:02:25]} 15. Ne5 {[%clk 0:02:03]}  Qd5 {[%clk 0:02:25]} 16. Qxd5 {[%clk 0:01:51]}  cxd5 {[%clk 0:02:25]} 17. Nxg4 {[%clk 0:01:51]}  fxg4 {[%clk 0:02:24]} 18. Rac1 {[%clk 0:01:52]}  Bd6 {[%clk 0:02:24]} 19. Rc2 {[%clk 0:01:36]}  Kg8 {[%clk 0:02:18]} 20. Rfc1 {[%clk 0:01:35]}  a5 {[%clk 0:02:15]} 21. g3 {[%clk 0:01:32]}  a4 {[%clk 0:02:13]} 22. a3 {[%clk 0:01:24]}  Rab8 {[%clk 0:02:07]} 23. Kf1 {[%clk 0:01:15]}  Rb3 {[%clk 0:02:06]} 24. Re1 {[%clk 0:01:03]}  Rfb8 {[%clk 0:01:49]} 25. Ree2 {[%clk 0:01:03]}  Rd3 {[%clk 0:01:43]} 26. Red2 {[%clk 0:00:55]}  Rbb3 {[%clk 0:01:33]} 27. Ke2 {[%clk 0:00:43]}  Rxd2+ {[%clk 0:01:33]} 28. Kxd2 {[%clk 0:00:37]}  Kf7 {[%clk 0:01:30]} 29. Kd1 {[%clk 0:00:37]}  Rd3+ {[%clk 0:01:21]} 30. Rd2 {[%clk 0:00:35]}  Rb3 {[%clk 0:01:20]} 31. Kc2 {[%clk 0:00:32]}  Ke6 {[%clk 0:01:19]} 32. Rd3 {[%clk 0:00:32]}  Rb7 {[%clk 0:01:10]} 33. Bd2 {[%clk 0:00:20]}  Kf5 {[%clk 0:00:57]} 34. Re3 {[%clk 0:00:20]}  Rb8 {[%clk 0:00:52]} 35. f3 {[%clk 0:00:16]}  gxf3 {[%clk 0:00:49]} 36. Rxf3+ {[%clk 0:00:17]}  Ke4 {[%clk 0:00:38]} 37. Rf7 {[%clk 0:00:15]}  Rg8 {[%clk 0:00:31]} 38. Bc3 {[%clk 0:00:13]}  h5 {[%clk 0:00:21]} 39. Kd2 {[%clk 0:00:13]}  g6 {[%clk 0:00:18]} 40. Ke2 {[%clk 0:00:12]}  Re8 {[%clk 0:00:13]} 41. Kd2 {[%clk 0:00:04]}  c5 {[%clk 0:00:12]} 42. dxc5 {[%clk 0:00:04]}  Bxc5 {[%clk 0:00:12]} 43. Rf4# {[%clk 0:00:02]} 1-0


[Site "https://www.chess.com"]

[Event "Titled Tuesday Blitz July 25 Late 2023"]
[White "Ardila, Oscar Humberto"]
[Black "The_Straightforward_Rook"]
[WhiteFideId "4404742"]
[WhiteElo "2213"]
[BlackElo "2388"]
[Result "1-0"]
[Round "7"]
[TimeControl "180+2"]
[Date "2023.07.25"]
[WhiteClock "0:01:08"]
[BlackClock "0:01:37"]
[Board "142"]

1. d4 {[%clk 0:03:00]}  Nf6 {[%clk 0:02:59]} 2. c4 {[%clk 0:03:00]}  e6 {[%clk 0:03:00]} 3. Nc3 {[%clk 0:03:00]}  Bb4 {[%clk 0:03:00]} 4. Bd2 {[%clk 0:03:00]}  O-O {[%clk 0:03:00]} 5. Nf3 {[%clk 0:03:01]}  d5 {[%clk 0:03:01]} 6. e3 {[%clk 0:03:01]}  b6 {[%clk 0:03:00]} 7. Be2 {[%clk 0:02:59]}  Bb7 {[%clk 0:03:00]} 8. O-O {[%clk 0:02:59]}  Re8 {[%clk 0:02:59]} 9. Nxd5 {[%clk 0:02:56]}  Nxd5 {[%clk 0:02:53]} 10. cxd5 {[%clk 0:02:56]}  Bxd2 {[%clk 0:02:53]} 11. Qxd2 {[%clk 0:02:55]}  Qxd5 {[%clk 0:02:53]} 12. b3 {[%clk 0:02:53]}  Nd7 {[%clk 0:02:51]} 13. Rac1 {[%clk 0:02:53]}  c5 {[%clk 0:02:50]} 14. Rfd1 {[%clk 0:02:49]}  cxd4 {[%clk 0:02:47]} 15. Qxd4 {[%clk 0:02:49]}  Nf6 {[%clk 0:02:41]} 16. Qxd5 {[%clk 0:02:39]}  Bxd5 {[%clk 0:02:42]} 17. Rc7 {[%clk 0:02:39]}  Rec8 {[%clk 0:02:37]} 18. Rdc1 {[%clk 0:02:39]}  Rxc7 {[%clk 0:02:37]} 19. Rxc7 {[%clk 0:02:39]}  Ne8 {[%clk 0:02:35]} 20. Rd7 {[%clk 0:02:25]}  Bc6 {[%clk 0:02:35]} 21. Rd1 {[%clk 0:02:24]}  Kf8 {[%clk 0:02:35]} 22. Ne5 {[%clk 0:02:24]}  Bd5 {[%clk 0:02:25]} 23. Bf3 {[%clk 0:02:23]}  Rd8 {[%clk 0:02:16]} 24. Nc6 {[%clk 0:02:15]}  Rc8 {[%clk 0:02:07]} 25. Bxd5 {[%clk 0:02:13]}  exd5 {[%clk 0:02:05]} 26. Nb4 {[%clk 0:01:57]}  Nf6 {[%clk 0:02:04]} 27. h3 {[%clk 0:01:56]}  a5 {[%clk 0:01:52]} 28. Nxd5 {[%clk 0:01:52]}  Rd8 {[%clk 0:01:52]} 29. Nc3 {[%clk 0:01:52]}  Rc8 {[%clk 0:01:49]} 30. Na4 {[%clk 0:01:51]}  b5 {[%clk 0:01:48]} 31. Nb6 {[%clk 0:01:50]}  Rc2 {[%clk 0:01:48]} 32. a4 {[%clk 0:01:49]}  b4 {[%clk 0:01:47]} 33. Nc4 {[%clk 0:01:43]}  Ne4 {[%clk 0:01:45]} 34. f3 {[%clk 0:01:33]}  Nc3 {[%clk 0:01:42]} 35. Rd8+ {[%clk 0:01:31]}  Ke7 {[%clk 0:01:42]} 36. Rb8 {[%clk 0:01:26]}  h5 {[%clk 0:01:39]} 37. Nxa5 {[%clk 0:01:26]}  h4 {[%clk 0:01:40]} 38. Rxb4 {[%clk 0:01:12]}  Ne2+ {[%clk 0:01:39]} 39. Kh2 {[%clk 0:01:12]}  Ng3 {[%clk 0:01:39]} 40. Rxh4 {[%clk 0:01:08]}  Nf1+ {[%clk 0:01:38]} 41. Kg1 {[%clk 0:01:07]}  Nxe3 {[%clk 0:01:38]} 42. Re4+ {[%clk 0:01:07]}  Kd6 {[%clk 0:01:37]} 43. Rxe3 {[%clk 0:01:08]} 1-0


[Site "https://www.chess.com"]

[Event "Titled Tuesday Blitz July 25 Late 2023"]
[White "Kostiukov, Alexandr"]
[Black "Quirke, Jeffrey"]
[WhiteFideId "14108100"]
[BlackFideId "2013029"]
[WhiteElo "2319"]
[BlackElo "2183"]
[Result "1-0"]
[Round "7"]
[TimeControl "180+2"]
[Date "2023.07.25"]
[WhiteClock "0:00:44"]
[BlackClock "0:00:00"]
[Board "143"]

1. g3 {[%clk 0:02:59]}  c6 {[%clk 0:02:57]} 2. Bg2 {[%clk 0:02:59]}  d5 {[%clk 0:02:58]} 3. d3 {[%clk 0:02:59]}  Nf6 {[%clk 0:02:57]} 4. e4 {[%clk 0:03:00]}  e5 {[%clk 0:02:53]} 5. Qe2 {[%clk 0:02:58]}  Bd6 {[%clk 0:02:49]} 6. Nf3 {[%clk 0:02:57]}  O-O {[%clk 0:02:47]} 7. O-O {[%clk 0:02:56]}  Re8 {[%clk 0:02:47]} 8. c4 {[%clk 0:02:52]}  dxc4 {[%clk 0:02:44]} 9. dxc4 {[%clk 0:02:52]}  Nbd7 {[%clk 0:02:43]} 10. Nc3 {[%clk 0:02:48]}  Qc7 {[%clk 0:02:42]} 11. Rd1 {[%clk 0:02:47]}  a5 {[%clk 0:02:41]} 12. Nh4 {[%clk 0:02:41]}  Bf8 {[%clk 0:02:38]} 13. Nf5 {[%clk 0:02:40]}  Nc5 {[%clk 0:02:36]} 14. f3 {[%clk 0:02:38]}  Ne6 {[%clk 0:02:31]} 15. Be3 {[%clk 0:02:36]}  Bc5 {[%clk 0:02:27]} 16. Rd2 {[%clk 0:02:22]}  Bxe3+ {[%clk 0:02:25]} 17. Qxe3 {[%clk 0:02:19]}  b6 {[%clk 0:02:09]} 18. Rad1 {[%clk 0:02:14]}  Ba6 {[%clk 0:02:05]} 19. b3 {[%clk 0:02:13]}  Red8 {[%clk 0:02:02]} 20. h4 {[%clk 0:02:06]}  Rxd2 {[%clk 0:01:55]} 21. Rxd2 {[%clk 0:02:06]}  Rd8 {[%clk 0:01:56]} 22. Bh3 {[%clk 0:01:56]}  Bc8 {[%clk 0:01:37]} 23. Kf2 {[%clk 0:01:41]}  Nd4 {[%clk 0:01:30]} 24. Nxg7 {[%clk 0:01:15]}  Bxh3 {[%clk 0:01:19]} 25. Qg5 {[%clk 0:01:13]}  Kf8 {[%clk 0:00:35]} 26. Qxf6 {[%clk 0:01:13]}  Qd6 {[%clk 0:00:30]} 27. Nh5 {[%clk 0:01:01]}  Qxf6 {[%clk 0:00:28]} 28. Nxf6 {[%clk 0:01:01]}  Kg7 {[%clk 0:00:13]} 29. Nh5+ {[%clk 0:01:01]}  Kh6 {[%clk 0:00:12]} 30. g4 {[%clk 0:01:01]}  Rg8 {[%clk 0:00:07]} 31. Ne2 {[%clk 0:00:50]}  Bxg4 {[%clk 0:00:00]} 32. Nf6 {[%clk 0:00:44]} 1-0


[Site "https://www.chess.com"]

[Event "Titled Tuesday Blitz July 25 Late 2023"]
[White "Bazzano, Sebastian"]
[Black "Manon-og, Ramon Jr."]
[WhiteFideId "104566"]
[BlackFideId "5200776"]
[WhiteElo "2206"]
[BlackElo "2301"]
[Result "0-1"]
[Round "7"]
[TimeControl "180+2"]
[Date "2023.07.25"]
[WhiteClock "0:00:00"]
[BlackClock "0:00:48"]
[Board "144"]

1. d4 {[%clk 0:03:00]}  Nf6 {[%clk 0:02:59]} 2. Bf4 {[%clk 0:02:59]}  c5 {[%clk 0:02:56]} 3. dxc5 {[%clk 0:02:59]}  Qa5+ {[%clk 0:02:49]} 4. c3 {[%clk 0:02:57]}  Qxc5 {[%clk 0:02:45]} 5. Qd4 {[%clk 0:02:56]}  Qxd4 {[%clk 0:02:44]} 6. cxd4 {[%clk 0:02:56]}  Nc6 {[%clk 0:02:36]} 7. Nf3 {[%clk 0:02:56]}  Nd5 {[%clk 0:02:24]} 8. Bg3 {[%clk 0:02:46]}  g6 {[%clk 0:02:08]} 9. Nc3 {[%clk 0:02:18]}  Nxc3 {[%clk 0:01:53]} 10. bxc3 {[%clk 0:02:19]}  Bg7 {[%clk 0:01:53]} 11. e4 {[%clk 0:02:07]}  O-O {[%clk 0:01:49]} 12. Bd3 {[%clk 0:02:05]}  e5 {[%clk 0:01:46]} 13. d5 {[%clk 0:01:57]}  Na5 {[%clk 0:01:44]} 14. Bxe5 {[%clk 0:01:40]}  Bxe5 {[%clk 0:01:43]} 15. Nxe5 {[%clk 0:01:41]}  Re8 {[%clk 0:01:43]} 16. Nf3 {[%clk 0:01:38]}  f5 {[%clk 0:01:42]} 17. e5 {[%clk 0:01:37]}  d6 {[%clk 0:01:36]} 18. e6 {[%clk 0:01:37]}  a6 {[%clk 0:01:26]} 19. Kd2 {[%clk 0:01:22]}  b5 {[%clk 0:01:26]} 20. h4 {[%clk 0:01:22]}  Bb7 {[%clk 0:01:22]} 21. a4 {[%clk 0:01:09]}  Nb3+ {[%clk 0:01:15]} 22. Kc2 {[%clk 0:01:09]}  Nxa1+ {[%clk 0:01:16]} 23. Rxa1 {[%clk 0:01:09]}  Bxd5 {[%clk 0:01:16]} 24. Nd4 {[%clk 0:01:03]}  Bxe6 {[%clk 0:01:11]} 25. Nxe6 {[%clk 0:01:01]}  Rxe6 {[%clk 0:01:11]} 26. axb5 {[%clk 0:01:01]}  d5 {[%clk 0:01:06]} 27. bxa6 {[%clk 0:00:59]}  Ra7 {[%clk 0:01:06]} 28. Rb1 {[%clk 0:00:55]}  Kg7 {[%clk 0:01:04]} 29. Rb7+ {[%clk 0:00:32]}  Re7 {[%clk 0:01:04]} 30. Rxa7 {[%clk 0:00:29]}  Rxa7 {[%clk 0:01:04]} 31. Kb3 {[%clk 0:00:30]}  Kf6 {[%clk 0:01:01]} 32. Kb4 {[%clk 0:00:30]}  Rc7 {[%clk 0:00:56]} 33. c4 {[%clk 0:00:09]}  dxc4 {[%clk 0:00:52]} 34. Bxc4 {[%clk 0:00:10]}  Ke5 {[%clk 0:00:52]} 35. Kb5 {[%clk 0:00:04]}  Kd4 {[%clk 0:00:52]} 36. Be2 {[%clk 0:00:04]}  Rc2 {[%clk 0:00:50]} 37. Bf3 {[%clk 0:00:04]}  Rxf2 {[%clk 0:00:49]} 38. a7 {[%clk 0:00:03]}  Rb2+ {[%clk 0:00:50]} 39. Ka6 {[%clk 0:00:02]}  Ra2+ {[%clk 0:00:50]} 40. Kb7 {[%clk 0:00:00]}  Ke5 {[%clk 0:00:48]} 0-1


[Site "https://www.chess.com"]

[Event "Titled Tuesday Blitz July 25 Late 2023"]
[White "Oliveira, Tiago Batista"]
[Black "Broca Jimenez, Fernando"]
[WhiteFideId "2108291"]
[BlackFideId "5104742"]
[WhiteElo "2158"]
[BlackElo "2270"]
[Result "1-0"]
[Round "7"]
[TimeControl "180+2"]
[Date "2023.07.25"]
[WhiteClock "0:01:17"]
[BlackClock "0:01:15"]
[Board "145"]

1. d4 {[%clk 0:03:00]}  c5 {[%clk 0:02:59]} 2. d5 {[%clk 0:02:51]}  e6 {[%clk 0:02:54]} 3. c4 {[%clk 0:02:51]}  Nf6 {[%clk 0:02:52]} 4. Nc3 {[%clk 0:02:50]}  exd5 {[%clk 0:02:52]} 5. cxd5 {[%clk 0:02:51]}  Bd6 {[%clk 0:02:50]} 6. g3 {[%clk 0:02:49]}  O-O {[%clk 0:02:50]} 7. Bg2 {[%clk 0:02:50]}  Na6 {[%clk 0:02:48]} 8. Nf3 {[%clk 0:02:47]}  Re8 {[%clk 0:02:46]} 9. O-O {[%clk 0:02:46]}  Nc7 {[%clk 0:02:44]} 10. a4 {[%clk 0:02:45]}  b6 {[%clk 0:02:43]} 11. Re1 {[%clk 0:02:43]}  Bb7 {[%clk 0:02:39]} 12. e4 {[%clk 0:02:43]}  Bf8 {[%clk 0:02:32]} 13. Bg5 {[%clk 0:02:37]}  h6 {[%clk 0:02:30]} 14. Bxf6 {[%clk 0:02:37]}  Qxf6 {[%clk 0:02:30]} 15. e5 {[%clk 0:02:36]}  Qg6 {[%clk 0:02:23]} 16. d6 {[%clk 0:02:30]}  Bxf3 {[%clk 0:02:05]} 17. Bxf3 {[%clk 0:02:29]}  Ne6 {[%clk 0:02:04]} 18. Bxa8 {[%clk 0:02:28]}  Rxa8 {[%clk 0:02:05]} 19. Qf3 {[%clk 0:01:58]}  Nd4 {[%clk 0:02:03]} 20. Qxa8 {[%clk 0:01:55]}  Qf5 {[%clk 0:01:55]} 21. f4 {[%clk 0:01:48]}  Qg4 {[%clk 0:01:50]} 22. Rf1 {[%clk 0:01:39]}  g6 {[%clk 0:01:46]} 23. Rae1 {[%clk 0:01:23]}  h5 {[%clk 0:01:44]} 24. Qe4 {[%clk 0:01:20]}  Nf5 {[%clk 0:01:30]} 25. Nd5 {[%clk 0:01:18]}  Kh7 {[%clk 0:01:15]} 26. Nf6+ {[%clk 0:01:17]} 1-0


[Site "https://www.chess.com"]

[Event "Titled Tuesday Blitz July 25 Late 2023"]
[White "Thiel, Thomas"]
[Black "Tarnowska, Aleksandra"]
[WhiteFideId "4615964"]
[BlackFideId "1180967"]
[WhiteElo "2260"]
[BlackElo "2102"]
[Result "0-1"]
[Round "7"]
[TimeControl "180+2"]
[Date "2023.07.25"]
[WhiteClock "0:00:56"]
[BlackClock "0:00:20"]
[Board "147"]

1. e4 {[%clk 0:03:00]}  c5 {[%clk 0:02:59]} 2. Nc3 {[%clk 0:02:59]}  d6 {[%clk 0:02:56]} 3. f4 {[%clk 0:02:57]}  g6 {[%clk 0:02:55]} 4. Nf3 {[%clk 0:02:56]}  Bg7 {[%clk 0:02:55]} 5. Bc4 {[%clk 0:02:56]}  Nc6 {[%clk 0:02:56]} 6. O-O {[%clk 0:02:55]}  Nf6 {[%clk 0:02:56]} 7. Qe1 {[%clk 0:02:53]}  Nb4 {[%clk 0:02:45]} 8. Bb3 {[%clk 0:02:52]}  O-O {[%clk 0:02:34]} 9. a3 {[%clk 0:02:49]}  Nc6 {[%clk 0:02:33]} 10. d3 {[%clk 0:02:49]}  Nd4 {[%clk 0:02:33]} 11. Nxd4 {[%clk 0:02:47]}  cxd4 {[%clk 0:02:34]} 12. Nd5 {[%clk 0:02:46]}  Nxd5 {[%clk 0:02:29]} 13. Bxd5 {[%clk 0:02:47]}  e6 {[%clk 0:02:19]} 14. Ba2 {[%clk 0:02:46]}  Qc7 {[%clk 0:02:18]} 15. Rf2 {[%clk 0:02:39]}  Bd7 {[%clk 0:02:13]} 16. Kh1 {[%clk 0:02:32]}  Ba4 {[%clk 0:02:13]} 17. f5 {[%clk 0:02:25]}  exf5 {[%clk 0:02:11]} 18. exf5 {[%clk 0:02:25]}  Rae8 {[%clk 0:02:11]} 19. Qf1 {[%clk 0:02:24]}  Bxc2 {[%clk 0:01:48]} 20. f6 {[%clk 0:02:20]}  Bh8 {[%clk 0:01:47]} 21. Bh6 {[%clk 0:02:20]}  Ba4 {[%clk 0:01:41]} 22. Bxf8 {[%clk 0:02:18]}  Kxf8 {[%clk 0:01:30]} 23. Rc1 {[%clk 0:02:16]}  Qd7 {[%clk 0:01:25]} 24. Re1 {[%clk 0:02:12]}  Bc6 {[%clk 0:01:16]} 25. Rfe2 {[%clk 0:02:03]}  Rxe2 {[%clk 0:01:12]} 26. Rxe2 {[%clk 0:02:02]}  d5 {[%clk 0:00:47]} 27. Qf4 {[%clk 0:01:48]}  Qc8 {[%clk 0:00:28]} 28. Qd6+ {[%clk 0:01:46]}  Kg8 {[%clk 0:00:28]} 29. g3 {[%clk 0:01:39]}  h5 {[%clk 0:00:27]} 30. Re7 {[%clk 0:01:33]}  Be8 {[%clk 0:00:21]} 31. Qxd5 {[%clk 0:01:27]}  Qc1+ {[%clk 0:00:19]} 32. Kg2 {[%clk 0:00:56]}  Bc6 {[%clk 0:00:20]} 0-1


[Site "https://www.chess.com"]

[Event "Titled Tuesday Blitz July 25 Late 2023"]
[White "Vaglio Munoz, Jaime"]
[Black "dorpato"]
[WhiteFideId "6500145"]
[WhiteElo "2241"]
[BlackElo "2040"]
[Result "1-0"]
[Round "7"]
[TimeControl "180+2"]
[Date "2023.07.25"]
[WhiteClock "0:01:23"]
[BlackClock "0:00:00"]
[Board "149"]

1. e4 {[%clk 0:03:00]}  c5 {[%clk 0:02:56]} 2. a3 {[%clk 0:03:00]}  d6 {[%clk 0:02:49]} 3. b4 {[%clk 0:02:59]}  b6 {[%clk 0:02:35]} 4. Bb2 {[%clk 0:02:57]}  Bb7 {[%clk 0:02:29]} 5. d3 {[%clk 0:02:57]}  Nf6 {[%clk 0:02:23]} 6. Nf3 {[%clk 0:02:57]}  g6 {[%clk 0:02:19]} 7. Bxf6 {[%clk 0:02:51]}  exf6 {[%clk 0:02:19]} 8. bxc5 {[%clk 0:02:49]}  dxc5 {[%clk 0:02:17]} 9. Nbd2 {[%clk 0:02:48]}  Bg7 {[%clk 0:02:10]} 10. g3 {[%clk 0:02:47]}  O-O {[%clk 0:01:58]} 11. Bg2 {[%clk 0:02:47]}  f5 {[%clk 0:01:56]} 12. exf5 {[%clk 0:02:46]}  Bxa1 {[%clk 0:01:53]} 13. Qxa1 {[%clk 0:02:45]}  Nd7 {[%clk 0:01:46]} 14. O-O {[%clk 0:02:42]}  Qf6 {[%clk 0:01:37]} 15. fxg6 {[%clk 0:02:39]}  fxg6 {[%clk 0:01:24]} 16. Qa2+ {[%clk 0:02:37]}  Kg7 {[%clk 0:01:01]} 17. h4 {[%clk 0:02:35]}  Bxf3 {[%clk 0:00:56]} 18. Nxf3 {[%clk 0:02:34]}  Rae8 {[%clk 0:00:54]} 19. Ng5 {[%clk 0:02:33]}  h6 {[%clk 0:00:40]} 20. Ne4 {[%clk 0:02:32]}  Qe6 {[%clk 0:00:34]} 21. Qb2+ {[%clk 0:02:27]}  Qe5 {[%clk 0:00:28]} 22. Qb5 {[%clk 0:02:27]}  Nf6 {[%clk 0:00:22]} 23. Nd2 {[%clk 0:02:18]}  Qe7 {[%clk 0:00:18]} 24. Nc4 {[%clk 0:02:13]}  Ng4 {[%clk 0:00:16]} 25. Qb2+ {[%clk 0:02:11]}  Qf6 {[%clk 0:00:16]} 26. c3 {[%clk 0:02:10]}  Re6 {[%clk 0:00:14]} 27. Be4 {[%clk 0:02:08]}  Rfe8 {[%clk 0:00:14]} 28. f3 {[%clk 0:02:07]}  Ne5 {[%clk 0:00:14]} 29. Ne3 {[%clk 0:02:03]}  Nc6 {[%clk 0:00:13]} 30. Nd5 {[%clk 0:02:01]}  Qf7 {[%clk 0:00:12]} 31. f4 {[%clk 0:01:59]}  Rd8 {[%clk 0:00:10]} 32. c4+ {[%clk 0:01:58]}  Kh7 {[%clk 0:00:10]} 33. f5 {[%clk 0:01:57]}  Rxe4 {[%clk 0:00:08]} 34. fxg6+ {[%clk 0:01:54]}  Qxg6 {[%clk 0:00:07]} 35. dxe4 {[%clk 0:01:54]}  Nd4 {[%clk 0:00:07]} 36. Nf6+ {[%clk 0:01:52]}  Kg7 {[%clk 0:00:07]} 37. Qf2 {[%clk 0:01:47]}  Rf8 {[%clk 0:00:06]} 38. e5 {[%clk 0:01:46]}  Ne6 {[%clk 0:00:05]} 39. h5 {[%clk 0:01:45]}  Qg5 {[%clk 0:00:03]} 40. Re1 {[%clk 0:01:35]}  Rd8 {[%clk 0:00:02]} 41. Qf3 {[%clk 0:01:29]}  Rd2 {[%clk 0:00:01]} 42. Qb7+ {[%clk 0:01:24]}  Kf8 {[%clk 0:00:00]} 43. Qc8+ {[%clk 0:01:23]} 1-0


[Site "https://www.chess.com"]